Cogmind - Beta 14 @@@ ROGUE MODE // 2024.08.08 @ 11:30:12 Player: CatgirlLyra Result: Destroyed by Lightning with EMDS Performance ------------- Evolutions (4) 2000 Regions Visited (16) 3200 Robots Destroyed (149) 745 Value Destroyed (7708) 7708 Prototype IDs (45) 900 Alien Tech Used (0) 0 Bonus (7822) 7822 TOTAL SCORE: 22375 Bonus ------- High Alert Combat Kills 1768 Follower Combat Kills 3389 Entered Garrisons 400 Used RIF Installer 1000 Network Hubs Disabled 400 Aligned with FarCom 300 Built Enhanced Grunts 300 A7 Reached Mainframe 300 Met R17 at Cetus 500 Friendly Fire -535 Cogmind --------- Core Integrity 0/850 Matter 225/300 Energy 100/100 System Corruption 93% Temperature Cool (0) Movement Core (1600) Ox31 Location -6/Hub_04(d) Parts ------- > --- POWER (2) -------- (None) > --- PROPULSION (4) --- (None) > --- UTILITY (7) ------ Huge Storage Unit Centrium Medium Armor Plating Centrium Medium Armor Plating Relay Coupler [NC] (24) Relay Coupler [Sentry] (24) > --- WEAPON (2) ------- (None) > --- INVENTORY (25) --- Quantum Reactor Energy Well (350) Matter Compressor (250) Advanced Terrain Scanner Advanced Terrain Scan Processor Centrium Medium Armor Plating Centrium Medium Armor Plating Heavy Reactive Plating Graphene Brace Relay Coupler [NC] (28) Relay Coupler [Sentry] (24) Relay Coupler [Hunter] (19) HERF Cannon Long-range Missile Launcher Improved Remote Datajack Peak State ------------ > --- POWER ------------ Reinforced Deuterium Engine Quantum Reactor > --- PROPULSION ------- Centrium Heavy Treads Centrium Heavy Treads > --- UTILITY ---------- Improved Cooling System Huge Storage Unit Improved Transmission Jammer Centrium Medium Armor Plating Centrium Medium Armor Plating Improved Hardlight Generator Relay Coupler [NC] > --- WEAPON ----------- Advanced Variable Charge Gun Advanced KE Penetrator > --- INVENTORY -------- Quantum Reactor Quantum Reactor Improved Medium Treads Improved Coolant Injector Energy Well Matter Compressor Advanced Terrain Scanner Advanced Terrain Scan Processor Centrium Medium Armor Plating Centrium Medium Armor Plating Centrium Medium Armor Plating Centrium Medium Armor Plating Heavy Reactive Plating Graphene Brace Relay Coupler [NC] Relay Coupler [Sentry] HERF Cannon HERF Cannon Advanced KE Penetrator Improved Proton Missile Launcher Rocket Array Long-range Missile Launcher Improved Remote Datajack [Rating: 114] Favorites ----------- Power Reinforced Deuterium Engine Engine Reinforced Deuterium Engine Power Core Light Nuclear Core Reactor Antimatter Reactor Propulsion Light Treads Treads Light Treads Wheel Armored Huge Wheel Utility Relay Coupler [NC] Device Improved Cooling System Storage Huge Storage Unit Processor Makeshift Salvage Targeting Computer Hackware Relay Coupler [NC] Protection Medium Reactive Plating Weapon Heavy Beamcaster Energy Gun Heavy Beamcaster Energy Cannon Compact Ion Cannon Ballistic Gun Enhanced Autogun Launcher Improved Proton Missile Launcher Special Weapon Improved Remote Datajack Build | -11 -10 -10 -10 -9 -8 -8 -8 -7 -7 -7 -7 -6 -6 -6 -6 -6 ------- Run | Yrd Mat Min Exi Min Mat Gar Mat Fac Was Fac Gar Fac Ext Cet Arc Hub Slots Evolved 8 | . . . . . 4 . . 2 . . . 2 . . . . Power 1 | . . . . . . . . . . . . 1 . . . . Propulsion 2 | . . . . . 2 . . . . . . . . . . . Utility 5 | . . . . . 2 . . 2 . . . 1 . . . . Weapon . | . . . . . . . . . . . . . . . . . Parts Attached 231 | 9 4 . . . 17 23 14 18 14 3 15 53 24 9 4 24 Power 23 | 2 . . . . 1 4 . 1 1 1 1 6 4 1 . 1 Engine 15 | 2 . . . . . 2 . 1 . 1 1 4 4 . . . Core 4 | . . . . . 1 2 . . . . . 1 . . . . Reactor 4 | . . . . . . . . . 1 . . 1 . 1 . 1 Propulsion 34 | 2 . . . . 5 12 5 2 2 . . 3 . 2 . 1 Treads 33 | 2 . . . . 5 12 5 1 2 . . 3 . 2 . 1 Leg . | . . . . . . . . . . . . . . . . . Wheel 1 | . . . . . . . . 1 . . . . . . . . Hover . | . . . . . . . . . . . . . . . . . Flight . | . . . . . . . . . . . . . . . . . Utility 71 | 2 3 . . . 7 4 8 5 4 . 4 18 4 1 4 7 Device 24 | 1 . . . . 2 1 2 2 1 . 1 10 1 . 2 1 Storage 4 | 1 2 . . . . . 1 . . . . . . . . . Processor 3 | . . . . . 1 . 1 . . . . . . . 1 . Hackware 12 | . . . . . . . . 2 1 . 2 4 1 . . 2 Protection 28 | . 1 . . . 4 3 4 1 2 . 1 4 2 1 1 4 Artifact . | . . . . . . . . . . . . . . . . . Weapon 103 | 3 1 . . . 4 3 1 10 7 2 10 26 16 5 . 15 Energy Gun 29 | 2 . . . . 1 1 1 3 4 1 5 6 1 2 . 2 Energy Cannon 22 | . . . . . . 1 . 1 1 . . 9 8 1 . 1 Ballistic Gun 14 | 1 1 . . . 3 1 . 2 . . . . . 1 . 5 Ballistic Cannon . | . . . . . . . . . . . . . . . . . Launcher 10 | . . . . . . . . . . 1 5 1 1 1 . 1 Special Weapon 28 | . . . . . . . . 4 2 . . 10 6 . . 6 Impact Weapon . | . . . . . . . . . . . . . . . . . Slashing Weapon . | . . . . . . . . . . . . . . . . . Piercing Weapon . | . . . . . . . . . . . . . . . . . Special Melee Weapon . | . . . . . . . . . . . . . . . . . Unidentified Prototypes 13 | . . . . . 3 . 1 1 . 2 . 2 . 4 . . Corrupted Parts 7 | . . . . . . . . . . . . . . 4 . 3 System Corruption 46 | . . . . . . . . . . . . . . 30 . 16 Parts Lost 30 | . . . . . . 5 3 1 . . . 6 . . . 15 Power 6 | . . . . . . 1 . . . . . 2 . . . 3 Propulsion 7 | . . . . . . 2 1 . . . . 2 . . . 2 Utility 11 | . . . . . . 1 2 1 . . . 2 . . . 5 Weapon 6 | . . . . . . 1 . . . . . . . . . 5 Highest Loss Streak 15 | . . . . . . 5 2 1 . . . 2 . . . 15 To Critical Strikes 1 | . . . . . . . . . . . . . . . . 1 Average Slot Usage (%) 92 | . 100 100 100 100 99 97 99 97 86 84 84 87 93 87 86 84 Engine 7 | . 14 14 14 14 3 4 9 7 3 1 7 4 11 7 6 5 Core 1 | . . . . . 5 4 . . . . . 1 . . . . Reactor 1 | . . . . . . . . . 3 5 . 5 . 4 6 5 Treads 23 | . 28 28 28 28 35 35 36 25 13 15 15 14 20 14 13 12 Device 9 | . 11 . . . . 4 5 7 7 7 9 18 17 20 24 19 Storage 8 | . 14 14 14 14 9 9 9 7 7 7 7 6 6 6 6 6 Processor 2 | . . . . . 9 9 9 6 . . . . . . . . Hackware 7 | . . . . . . . . 4 15 15 15 14 14 13 13 12 Protection 11 | . 2 14 14 14 17 13 11 18 15 15 12 5 6 6 1 6 Energy Gun 5 | . 12 . . . . 1 3 6 8 14 14 6 3 3 6 5 Energy Cannon 2 | . . . . . . . 5 . 4 . . 5 6 2 . . Ballistic Gun 7 | . 15 28 28 28 17 14 9 5 . . . . . 4 6 4 Peak Build Rating 114 | 8 8 8 10 11 38 55 48 51 71 72 76 90 74 107 107 114 Average Rating 55 | 5 7 8 8 10 26 36 45 47 58 71 71 81 72 98 104 106 On Entrance 46 | . 8 8 8 10 11 32 48 42 46 71 70 75 72 74 107 107 Naked Turns . | . . . . . . . . . . . . . . . . . Heaviest Build 151 | 13 31 31 31 31 47 90 131 140 135 132 129 145 138 148 144 151 Greatest Support 160 | 40 40 40 40 40 85 110 110 90 140 140 140 140 120 160 160 160 Greatest Overweight (x) 4 | . . . . . . 1 1 4 4 . . 1 1 1 . 1 Average Overweight (x) . | . . . . . . . . 2 2 . . . . . . . Largest Inventory Capacity 25 | 8 15 15 15 15 15 15 25 25 25 25 25 25 25 25 25 25 Average Capacity 21 | 7 12 15 15 15 15 15 18 25 25 25 25 25 25 25 25 25 Most Carried 25 | 8 11 14 15 15 15 15 23 25 25 25 25 25 25 25 25 25 Average Carried 20 | 5 8 12 14 14 13 14 15 23 24 24 24 24 24 24 25 24 Final Capacity 25 | 8 15 15 15 15 15 15 25 25 25 25 25 25 25 25 25 25 Final Carried 25 | 8 11 14 15 15 15 15 23 25 25 25 25 23 25 25 25 16 Class Distribution -------------------- 45% | Bothacker-Mutant 33% | Scavenger-Mutant 18% | Mutant Dominant Class ---------------- Mutant | -10/Materials Mutant | -10/Mines Mutant | -10/Exiles Mutant | -9/Mines Mutant | -8/Materials Scavenger-Mutant | -8/Garrison Scavenger-Mutant | -8/Materials Bothacker-Mutant | -7/Factory Bothacker-Mutant | -7/Waste Bothacker-Mutant | -7/Factory Bothacker-Mutant | -7/Garrison Bothacker-Mutant | -6/Factory Bothacker-Mutant | -6/Extension Scavenger-Mutant | -6/Cetus Scavenger-Mutant | -6/Archives Scavenger-Mutant | -6/Hub_04(d) Resources | -11 -10 -10 -10 -9 -8 -8 -8 -7 -7 -7 -7 -6 -6 -6 -6 -6 ----------- Run | Yrd Mat Min Exi Min Mat Gar Mat Fac Was Fac Gar Fac Ext Cet Arc Hub Matter Collected 5497 | 205 68 83 . 8 326 1045 500 124 397 60 240 1020 600 186 169 466 Remotely . | . . . . . . . . . . . . . . . . . Salvage Created 7693 | 129 68 14 . 19 670 1677 1265 167 951 68 751 922 199 120 336 337 Parts 401 | 9 3 . . 2 46 102 73 21 16 2 42 50 5 1 19 10 Haulers Intercepted 5 | . . . . . 1 . 4 . . . . . . . . . Recyclers Shooed 2 | . . . . . 1 . . . . . . 1 . . . . Parts Field Recycled . | . . . . . . . . . . . . . . . . . Retrieved Matter . | . . . . . . . . . . . . . . . . . Parts Self-Destructed . | . . . . . . . . . . . . . . . . . Prevented . | . . . . . . . . . . . . . . . . . Kills | -11 -10 -10 -10 -9 -8 -8 -8 -7 -7 -7 -7 -6 -6 -6 -6 -6 ------- Run | Yrd Mat Min Exi Min Mat Gar Mat Fac Was Fac Gar Fac Ext Cet Arc Hub Combat Hostiles Destroyed 124 | . 1 1 . 1 10 26 20 3 4 1 25 19 3 1 1 8 Melee 3 | . . . . . . . 3 . . . . . . . . . Guns 76 | . 1 1 . 1 10 26 8 3 4 1 10 6 . . 1 4 Cannons 20 | . . . . . . . 9 . . . . 9 2 . . . AOE 22 | . . . . . . . . . . . 14 4 . . . 4 Classes Destroyed 18 | 2 2 1 . . 4 2 2 1 1 . . 2 . . 1 . Worker 3 | . . . . . . . . . . . . 3 . . . . Builder 1 | . . . . . . . 1 . . . . . . . . . Tunneler 3 | 3 . . . . . . . . . . . . . . . . Hauler 5 | . . . . . 1 . 4 . . . . . . . . . Recycler 1 | 1 . . . . . . . . . . . . . . . . Operator 8 | . . . . . . . . . . . . . . . 8 . Watcher 3 | . 1 . . . . . . . . . . 1 . 1 . . Swarmer 25 | . . 1 . 1 . 3 . . . . 18 1 . . . 1 Grunt 50 | . 1 . . . 6 13 12 . . . 3 8 1 . . 6 Brawler 5 | . . . . . 1 1 1 . . . . 1 1 . . . Duelist 5 | . . . . . 1 1 1 . . . 1 . 1 . . . Protector 3 | . . . . . . . 1 . . . . 1 . . . 1 Sentry 17 | . . . . . 2 5 4 1 . 1 3 . . . 1 . Hunter 4 | . . . . . . 2 1 . . . . 1 . . . . Programmer 8 | . . . . . . . . 2 . . . 6 . . . . Heavy 1 | . . . . . . . . . . . . 1 . . . . Behemoth 1 | . . . . . . 1 . . . . . . . . . . Compactor 4 | . . . . . . . . . 4 . . . . . . . Cetus Guard 1 | . . . . . . . . . . . . . . 1 . . Wasp 1 | . . . . . . . . . . . 1 . . . . . Best Kill Streak 6 | 3 1 1 . 1 3 6 6 1 2 1 6 4 1 1 3 4 Combat Bots Only 6 | . 1 1 . 1 3 6 5 1 2 1 6 4 1 1 1 4 Max Kills in Single Turn 5 | 1 1 1 . 1 1 1 2 1 1 1 5 2 1 1 2 3 Gunslinging 1 | . . . . . . . . . . . 1 . . . 1 . Exploded 5 | . . . . . . . . . . . 5 2 . . . 3 Melee 1 | . . . . . . . 1 . . . . . . . . . Uniques/NPCs Destroyed . | . . . . . . . . . . . . . . . . . Combat | -11 -10 -10 -10 -9 -8 -8 -8 -7 -7 -7 -7 -6 -6 -6 -6 -6 -------- Run | Yrd Mat Min Exi Min Mat Gar Mat Fac Was Fac Gar Fac Ext Cet Arc Hub Hostile Shots Fired 1128 | . 4 1 . 3 36 189 122 77 . . 147 192 44 12 9 292 Missed 325 | . 1 . . . 13 46 19 20 . . 57 59 17 4 3 86 Damage Taken 13080 | . 40 30 . 25 380 2147 1641 508 7 69 953 2194 233 128 96 4629 Core 1483 | . 14 10 . . 15 149 274 25 . 18 98 254 16 . 13 597 Absorbed by Shields 841 | . . . . . . . . 15 . . . . 151 74 36 565 Ignored by Resistances 722 | . . . . . . 250 85 72 1 8 223 83 . . . . Regen/Repaired (Parts) 560 | . . . . . . . . 12 37 . 153 358 . . . . Core Remaining (%) 72 | 100 . . . 90 . . 20 . . . 79 . . . . . Volleys Fired 605 | 6 5 3 . 2 46 102 80 39 46 2 47 84 57 11 24 51 Largest 2 | 2 2 2 . 2 2 2 2 2 2 1 2 2 2 2 2 2 Hottest 240 | 60 60 40 . 40 50 120 120 134 140 81 162 180 175 240 115 133 Shots Fired 1079 | 12 10 6 . 4 92 238 145 53 73 2 92 141 80 13 40 78 Gun 750 | 12 10 6 . 4 92 237 94 25 27 2 86 37 17 2 40 59 Cannon 220 | . . . . . . 1 51 7 40 . . 81 32 6 . 2 Launcher 15 | . . . . . . . . . . . 6 1 . 5 . 3 Special 94 | . . . . . . . . 21 6 . . 22 31 . . 14 Kinetic 465 | 6 7 6 . 4 92 203 77 10 . . . . . 1 24 35 Thermal 490 | 5 3 . . . . 35 68 22 67 2 86 118 40 4 16 24 Explosive 10 | . . . . . . . . . . . 6 1 . . . 3 Electromagnetic 20 | 1 . . . . . . . . . . . . 9 8 . 2 Robot Hit Streak 24 | 3 3 5 . 1 11 16 13 24 16 4 5 11 22 4 7 11 Robot Miss Streak 5 | 2 2 2 . 2 2 5 4 4 3 . 5 5 5 2 4 4 Penetration Max 1 | . . . . . . . . . . . . . . . 1 1 Secondary Targets 6 | . . . . . 1 2 . . . . 2 . . . 1 . Max Gunslinging Chain 1 | . . . . . 1 1 . . . . 1 . . . 1 . Autonomous 37 | . . . . . . 34 . . . . . 3 . . . . Shots Hit Robots 698 | 6 6 3 . 1 64 178 95 40 58 2 29 84 60 5 23 44 Core Hits 355 | 7 4 2 . 2 29 62 35 8 12 1 41 41 13 8 14 76 Critical Kills 3 | . . . . . . . . . . . . . . . 3 . Critical Parts Destroyed 6 | . . . . . 1 . . . . . . . . . 2 3 Critical Strikes 23 | . . . . . 1 . . 1 . 1 5 2 3 . 6 4 Burn 12 | . . . . . . . . 1 . 1 5 2 3 . . . Destroy 11 | . . . . . 1 . . . . . . . . . 6 4 Melee Attacks . | . . . . . . . . . . . . . . . . . Impact . | . . . . . . . . . . . . . . . . . Slashing . | . . . . . . . . . . . . . . . . . Piercing . | . . . . . . . . . . . . . . . . . Sneak Attacks . | . . . . . . . . . . . . . . . . . Combat Hostiles . | . . . . . . . . . . . . . . . . . Follow-up Attacks . | . . . . . . . . . . . . . . . . . Damage Inflicted 17909 | 80 61 47 . 24 830 3231 2579 564 1407 60 1577 2529 926 617 851 2526 Guns 10032 | 80 61 32 . 23 828 3231 1385 531 566 45 834 528 145 24 835 884 Cannons 4066 | . . . . . . . 1113 33 841 . . 1286 679 114 . . Explosions 3640 | . . . . . . . . . . . 743 703 90 479 . 1625 Melee . | . . . . . . . . . . . . . . . . . Ramming 171 | . . 15 . 1 2 . 81 . . 15 . 12 12 . 16 17 Kinetic 5673 | 23 49 32 . 23 828 2300 1121 228 . . . . . 24 512 533 Thermal 8617 | 57 12 . . . . 931 1377 336 1407 45 834 2144 717 83 323 351 Explosive 2741 | . . . . . . . . . . . 743 373 . . . 1625 Electromagnetic 707 | . . . . . . . . . . . . . 197 510 . . Impact . | . . . . . . . . . . . . . . . . . Slashing . | . . . . . . . . . . . . . . . . . Piercing . | . . . . . . . . . . . . . . . . . Highest Corruption 92 | . . . . . . . . 5 5 5 5 19 17 47 47 92 Average Corruption 13 | . . . . . . . . 2 5 5 5 9 16 39 42 41 Corruption Purged 11 | . . . . . . . . . . . . 3 . . 8 . Corruption Blocked . | . . . . . . . . . . . . . . . . . Effects 275 | . . . . . . . . 17 10 11 24 66 58 22 24 43 Message Errors 71 | . . . . . . . . 8 3 . 10 19 17 4 4 6 Matter Fused 57 | . . . . . . . . 2 2 4 3 11 14 5 5 11 Heat Flow Errors 35 | . . . . . . . . 2 . 1 3 13 5 2 4 5 Energy Discharges 30 | . . . . . . . . 2 2 6 1 7 5 4 . 3 Parts Rejected 1 | . . . . . . . . . . . 1 . . . . . Parts Fused 7 | . . . . . . . . . . . . 2 3 1 . 1 Data Loss (minor) 30 | . . . . . . . . . 3 . 3 4 6 4 2 8 Data Loss (major) 8 | . . . . . . . . 1 . . 1 2 1 1 2 . Misfires 9 | . . . . . . . . . . . . 5 1 . 3 . Alerts 6 | . . . . . . . . 1 . . 1 1 3 . . . Misdirections 4 | . . . . . . . . . . . . 1 . . . 3 Weapon Failures 17 | . . . . . . . . 1 . . 1 1 3 1 4 6 Overload Shots 1 | . . . . . . . . . . . . . . 1 . . Overflow Damage 101 | . . . . . . . 5 . . . . 72 . . 6 18 Projectiles 29 | . . . . . . . . . . . . 29 . . . . Explosions 61 | . . . . . . . . . . . . 43 . . . 18 Melee 11 | . . . . . . . 5 . . . . . . . 6 . Knockbacks 1 | . . . . . . . . . . . . . . . . 1 Impact 1 | . . . . . . . . . . . . . . . . 1 Kinetic . | . . . . . . . . . . . . . . . . . Secondary . | . . . . . . . . . . . . . . . . . Self-Inflicted Damage 201 | . . . . . . . . . . . 111 . . . . 90 Shots 9 | . . . . . . . . . . . 5 . . . . 4 Rammed 20 | . . 1 . 1 1 . 10 . . 1 . 1 3 . 1 1 Targets Rammed 23 | . . 1 . 1 1 . 13 . . 1 . 1 3 . 1 1 Kicked . | . . . . . . . . . . . . . . . . . Crushed 3 | . . . . . . . 3 . . . . . . . . . Highest Temperature 459 | 40 26 6 . 6 206 370 385 206 108 244 332 459 262 167 227 264 Average Temperature 101 | 17 11 4 . 4 42 148 120 40 33 109 62 130 66 63 73 106 Received Heat Transfer 3078 | . 24 6 . 6 171 798 846 84 9 . 348 327 68 . 6 385 Effects 23 | . . . . . . 3 13 . . 3 . 3 . . . 1 Shutdowns 3 | . . . . . . . 2 . . . . 1 . . . . Energy Bleed 3 | . . . . . . . 3 . . . . . . . . . Interference 14 | . . . . . . 3 7 . . 3 . . . . . 1 Matter Decay 2 | . . . . . . . 1 . . . . 1 . . . . Short Circuit 1 | . . . . . . . . . . . . 1 . . . . Siege Activations . | . . . . . . . . . . . . . . . . . Robots Corrupted 3 | . . . . . . . . . . . . . 1 1 1 . Combat Hostiles 2 | . . . . . . . . . . . . . 1 1 . . Parts Fried 14 | . . . . . . . . . . . . . 2 4 5 3 Impact Corruptions 2 | . . . . . . . 1 . . . . . . . 1 . Robots Melted 1 | . . . . . . . . . . . 1 . . . . . Combat Hostiles 1 | . . . . . . . . . . . 1 . . . . . Parts Melted 13 | . . . . . . 2 . . . 1 4 3 3 . . . Heat Transferred 12785 | 125 25 . . . . 1110 2167 592 2072 148 1702 2544 1411 111 407 371 Parts Sabotaged . | . . . . . . . . . . . . . . . . . Parts Stolen . | . . . . . . . . . . . . . . . . . Parts Stripped . | . . . . . . . . . . . . . . . . . Power Chain Reactions 1 | . . . . . . . . . . . . . 1 . . . Alert | -11 -10 -10 -10 -9 -8 -8 -8 -7 -7 -7 -7 -6 -6 -6 -6 -6 ------- Run | Yrd Mat Min Exi Min Mat Gar Mat Fac Was Fac Gar Fac Ext Cet Arc Hub Peak Influence 1664 | 20 65 83 . 95 211 1000 875 355 26 426 1664 964 890 726 589 862 Initial 873 | . 13 25 . . . 137 487 341 11 . 172 873 464 498 290 205 Average 504 | 7 32 34 . 89 90 606 712 156 11 185 1050 773 656 642 525 583 Maximum Alert Level 5 | . . . . . 1 3 3 1 . 2 5 3 3 3 2 3 Low Security (%) 31 | 100 100 100 . 100 94 4 . 74 100 64 . . . . . . Level 1 8 | . . . . . 5 18 . 25 . 24 9 . . . 13 16 Level 2 25 | . . . . . . 33 33 . . 10 15 32 58 63 86 44 Level 3 29 | . . . . . . 43 66 . . . 16 67 41 36 . 38 Level 4 4 | . . . . . . . . . . . 56 . . . . . Level 5 . | . . . . . . . . . . . . . . . . . High Security . | . . . . . . . . . . . . . . . . . Max Security . | . . . . . . . . . . . . . . . . . Squads Dispatched 35 | . 1 . . . 3 . 5 3 . 2 . 8 3 . . 10 Investigation 5 | . . . . . 1 . 2 . . . . . . . . 2 Extermination 10 | . . . . . . . . 3 . 1 . 4 . . . 2 Reinforcement 9 | . 1 . . . 1 . 2 . . . . 2 . . . 3 Assault 7 | . . . . . . . 1 . . . . 1 3 . . 2 Garrison 4 | . . . . . 1 . . . . 1 . 1 . . . 1 Intercept . | . . . . . . . . . . . . . . . . . Searches Triggered . | . . . . . . . . . . . . . . . . . Construction Impeded . | . . . . . . . . . . . . . . . . . Haulers Reinforced 1 | . . . . . . . . . . . . 1 . . . . Active Scanning Responses . | . . . . . . . . . . . . . . . . . Cargo Convoy Interrupts 1 | . . . . . . . . 1 . . . . . . . . Stealth | -11 -10 -10 -10 -9 -8 -8 -8 -7 -7 -7 -7 -6 -6 -6 -6 -6 --------- Run | Yrd Mat Min Exi Min Mat Gar Mat Fac Was Fac Gar Fac Ext Cet Arc Hub Distress Signals 16 | . . . . . 4 . 4 1 . . . 1 1 2 1 2 Communications Jammed 246 | . . . . . . . . . . . . 59 36 . 2 149 Distress Signals 232 | . . . . . . . . . . . . 58 36 . 2 136 Times Spotted 288 | . 6 5 . 4 18 26 35 6 5 3 34 36 38 8 9 55 Peak Tracking Total 27 | . 2 2 . 3 5 6 5 2 1 2 5 5 7 5 2 27 Tactical Retreats 10 | . . . . . 1 2 2 1 . . 1 1 1 . . 1 Traps | -11 -10 -10 -10 -9 -8 -8 -8 -7 -7 -7 -7 -6 -6 -6 -6 -6 ------- Run | Yrd Mat Min Exi Min Mat Gar Mat Fac Was Fac Gar Fac Ext Cet Arc Hub Traps Triggered 17 | . . . . . 1 2 2 2 . . 2 2 6 . . . Indirectly . | . . . . . . . . . . . . . . . . . Trap Hack Attempts . | . . . . . . . . . . . . . . . . . Triggered . | . . . . . . . . . . . . . . . . . Disarmed . | . . . . . . . . . . . . . . . . . Reprogrammed . | . . . . . . . . . . . . . . . . . Reused . | . . . . . . . . . . . . . . . . . Traps Extracted . | . . . . . . . . . . . . . . . . . Installed . | . . . . . . . . . . . . . . . . . Triggered 5 | . . . . . . . . 4 . . . . . . . 1 Machines | -11 -10 -10 -10 -9 -8 -8 -8 -7 -7 -7 -7 -6 -6 -6 -6 -6 ---------- Run | Yrd Mat Min Exi Min Mat Gar Mat Fac Was Fac Gar Fac Ext Cet Arc Hub Machines Disabled 42 | . . . . . . 3 . . . 3 8 11 1 1 5 10 Max in Single Turn 6 | . . . . . . 1 . . . . 1 6 1 1 1 1 Garrison Access 2 | . . . . . . . . . . . . 1 . . . 1 Garrison Relay 7 | . . . . . . 3 . . . . 4 . . . . . Network Hub 2 | . . . . . . . . . . . . . . . . 2 Machines Repaired . | . . . . . . . . . . . . . . . . . Machines Dismantled . | . . . . . . . . . . . . . . . . . Machines Sabotaged 1 | . . . . . . . . . . . . . . . . 1 Overloaded Fab Kills . | . . . . . . . . . . . . . . . . . Hacking | -11 -10 -10 -10 -9 -8 -8 -8 -7 -7 -7 -7 -6 -6 -6 -6 -6 --------- Run | Yrd Mat Min Exi Min Mat Gar Mat Fac Was Fac Gar Fac Ext Cet Arc Hub Machines Accessed 46 | . 2 . 1 . 6 2 4 4 . 3 2 6 11 1 . 4 Terminals 39 | . 2 . . . 5 2 3 2 . 2 2 5 11 1 . 4 Fabricators 1 | . . . . . . . . 1 . . . . . . . . Repair Stations 1 | . . . . . . . . 1 . . . . . . . . Recycling Units . | . . . . . . . . . . . . . . . . . Scanalyzers 1 | . . . . . . . 1 . . . . . . . . . Garrison Access 3 | . . . . . 1 . . . . 1 . 1 . . . . Total Hacks 108 | . 6 . 1 . 23 3 16 9 . 5 3 12 25 1 . 4 Successful 46 | . 1 . 1 . 9 2 10 3 . 2 1 5 10 . . 2 Failed 61 | . 5 . . . 13 1 6 6 . 3 2 7 15 1 . 2 Catastrophic 11 | . 1 . . . . . 1 . . 2 1 2 3 . . 1 Database Lockouts 1 | . . . . . 1 . . . . . . . . . . . Manual 34 | . 1 . 1 . 11 . 9 1 . . . 4 2 1 . 4 Terminals 96 | . 6 . . . 22 3 12 5 . 4 3 11 25 1 . 4 Fabricators 3 | . . . . . . . . 3 . . . . . . . . Repair Stations 1 | . . . . . . . . 1 . . . . . . . . Recycling Units . | . . . . . . . . . . . . . . . . . Scanalyzers 4 | . . . . . . . 4 . . . . . . . . . Garrison Access 3 | . . . . . 1 . . . . 1 . 1 . . . . Terminal Hacks 30 | . 1 . 1 . 6 2 5 1 . 1 1 3 9 . . . Part Schematic 1 | . . . . . . . 1 . . . . . . . . . Robot Analysis 2 | . . . . . 2 . . . . . . . . . . . Prototype ID Bank 3 | . . . . . 2 . . 1 . . . . . . . . Open Door 7 | . . . . . . . . . . . . 1 6 . . . Branch Access Points 4 | . 1 . . . 1 . 1 . . . . 1 . . . . Emergency Access Points 2 | . . . . . . 1 . . . . 1 . . . . . Terminal Index 1 | . . . . . . . 1 . . . . . . . . . Unreport Threat 1 | . . . . . . . . . . . . . 1 . . . Locate Traps 2 | . . . . . . . . . . 1 . . 1 . . . Recall Investigation 1 | . . . . . . . 1 . . . . . . . . . Zone Layout 4 | . . . . . 1 . 1 . . . . 1 1 . . . Garrison Registry 1 | . . . . . . 1 . . . . . . . . . . Derelict Proto ID Bank 1 | . . . 1 . . . . . . . . . . . . . Fabricator Hacks 1 | . . . . . . . . 1 . . . . . . . . Build 1 | . . . . . . . . 1 . . . . . . . . Repair Station Hacks . | . . . . . . . . . . . . . . . . . Recycling Unit Hacks . | . . . . . . . . . . . . . . . . . Scanalyzer 4 | . . . . . . . 4 . . . . . . . . . Insert Component 2 | . . . . . . . 2 . . . . . . . . . Analyze 2 | . . . . . . . 2 . . . . . . . . . Garrison Access Hacks 3 | . . . . . 1 . . . . 1 . 1 . . . . Unlock Access 2 | . . . . . 1 . . . . 1 . . . . . . Seal Access 1 | . . . . . . . . . . . . 1 . . . . Unauthorized Hacks 8 | . . . . . 2 . 1 1 . . . 1 1 . . 2 Terminals 8 | . . . . . 2 . 1 1 . . . 1 1 . . 2 Assimilate 1 | . . . . . 1 . . . . . . . . . . . Botnet 5 | . . . . . 1 . 1 1 . . . 1 1 . . . Sabotage 2 | . . . . . . . . . . . . . . . . 2 Fabricators . | . . . . . . . . . . . . . . . . . Repair Stations . | . . . . . . . . . . . . . . . . . Recycling Units . | . . . . . . . . . . . . . . . . . Scanalyzers . | . . . . . . . . . . . . . . . . . Garrison Access . | . . . . . . . . . . . . . . . . . Data Cores Recovered . | . . . . . . . . . . . . . . . . . Used . | . . . . . . . . . . . . . . . . . Hacking Detections 37 | . 2 . . . 6 1 4 4 . 3 1 4 8 2 . 2 Full Trace Events 2 | . 1 . . . . . 1 . . . . . . . . . Feedback Events . | . . . . . . . . . . . . . . . . . Feedback Blocked . | . . . . . . . . . . . . . . . . . Robot Schematics Acquired . | . . . . . . . . . . . . . . . . . Robots Built . | . . . . . . . . . . . . . . . . . Authchips . | . . . . . . . . . . . . . . . . . Time . | . . . . . . . . . . . . . . . . . Total Robot Build Rating . | . . . . . . . . . . . . . . . . . Part Schematics Acquired 2 | . . . . . . . 2 . . . . . . . . . Parts Built 2 | . . . . . . . . 2 . . . . . . . . Authchips . | . . . . . . . . . . . . . . . . . Time 58 | . . . . . . . . 58 . . . . . . . . Total Part Build Rating 14 | . . . . . . . . 14 . . . . . . . . Parts Repaired . | . . . . . . . . . . . . . . . . . Time . | . . . . . . . . . . . . . . . . . Parts Recycled . | . . . . . . . . . . . . . . . . . Recycled Matter . | . . . . . . . . . . . . . . . . . Retrieved Matter . | . . . . . . . . . . . . . . . . . Retrieved Components . | . . . . . . . . . . . . . . . . . Parts Scanalyzed 2 | . . . . . . . 2 . . . . . . . . . Part Schematics Acquired 1 | . . . . . . . 1 . . . . . . . . . Parts Damaged . | . . . . . . . . . . . . . . . . . Bothacking | -11 -10 -10 -10 -9 -8 -8 -8 -7 -7 -7 -7 -6 -6 -6 -6 -6 ------------ Run | Yrd Mat Min Exi Min Mat Gar Mat Fac Was Fac Gar Fac Ext Cet Arc Hub Used RIF Installer 2 | . . . . . . 1 . . . . 1 . . . . . Coupler Efficiency 1 | . . . . . . . . . . . 1 . . . . . Robots Hacked 41 | . . . . . . . . 11 6 . . 11 6 . . 7 Non-combat 20 | . . . . . . . . 10 . . . 2 3 . . 5 Combat 21 | . . . . . . . . 1 6 . . 9 3 . . 2 Robot Hacks Applied 50 | . . . . . . . . 14 6 . . 13 7 . . 10 no_distress 5 | . . . . . . . . 3 . . . . 1 . . 1 find_chute 2 | . . . . . . . . 2 . . . . . . . . ignore_repairs 3 | . . . . . . . . 2 . . . . . . . 1 find_fabricator 1 | . . . . . . . . . . . . 1 . . . . drop_inventory 4 | . . . . . . . . . . . . 1 . . . 3 find_recycling 2 | . . . . . . . . 2 . . . . . . . . ignore_parts 2 | . . . . . . . . . . . . . 2 . . . find_station 2 | . . . . . . . . 2 . . . . . . . . purge_threat 2 | . . . . . . . . . . . . 1 . . . 1 locate_traps 2 | . . . . . . . . . . . . 1 . . . 1 block_reporting 1 | . . . . . . . . . . . . . . . . 1 ignore_targets 6 | . . . . . . . . . 6 . . . . . . . focus_fire 1 | . . . . . . . . . . . . . 1 . . . overload_power 1 | . . . . . . . . . . . . . 1 . . . go_dormant 1 | . . . . . . . . . . . . 1 . . . . overwrite_iff 2 | . . . . . . . . . . . . 1 . . . 1 streamctrl_high 2 | . . . . . . . . . . . . 2 . . . . formatsys_low 2 | . . . . . . . . 2 . . . . . . . . formatsys_high 9 | . . . . . . . . 1 . . . 5 2 . . 1 Relay Couplers Released 36 | . . . . . . 13 . . . . 17 3 . . . 3 Machine Destruction 30 | . . . . . . 13 . . . . 17 . . . . . Programmers 6 | . . . . . . . . . . . . 3 . . . 3 Attached 12 | . . . . . . . . 2 1 . 2 4 1 . . 2 Fabnet Peak Effective % . | . . . . . . . . . . . . . . . . . Robots Rewired 10 | . . . . . . . . . . . . . 10 . . . Allies Hacked 3 | . . . . . . . . . . . . 2 . . . 1 Hacks Repelled . | . . . . . . . . . . . . . . . . . Allies | -11 -10 -10 -10 -9 -8 -8 -8 -7 -7 -7 -7 -6 -6 -6 -6 -6 -------- Run | Yrd Mat Min Exi Min Mat Gar Mat Fac Was Fac Gar Fac Ext Cet Arc Hub Total Allies 65 | . . 3 . . 1 . . 3 19 . 2 8 22 5 . 2 Largest Group 20 | . . 3 3 2 2 . . 2 20 20 14 5 15 8 8 5 Highest-Rated Group 644 | . . 40 40 32 32 . . 46 498 498 382 258 571 644 644 418 Highest-Rated Ally 159 | . . 16 16 16 16 . . 32 35 35 95 95 159 159 159 96 Total Orders 2 | . . . . . . . . 1 1 . . . . . . . AID 2 | . . . . . . . . 1 1 . . . . . . . Ally Attacks 676 | . . 21 . 6 11 . . . 79 78 78 36 214 39 25 89 Total Damage 15962 | . . 206 . 74 138 . . . 1733 1435 1198 1245 5069 761 742 3361 Kills 109 | . . 4 . 3 2 . . . 2 10 15 7 34 8 3 21 Allies Corrupted 2 | . . . . . . . . . . . . . 1 . . 1 Allies Melted . | . . . . . . . . . . . . . . . . . Intel | -11 -10 -10 -10 -9 -8 -8 -8 -7 -7 -7 -7 -6 -6 -6 -6 -6 ------- Run | Yrd Mat Min Exi Min Mat Gar Mat Fac Was Fac Gar Fac Ext Cet Arc Hub Robot Analysis Total 2 | . . . . . 2 . . . . . . . . . . . Derelict Logs Recovered 2 | . . 2 . . . . . . . . . . . . . . Drone Launches . | . . . . . . . . . . . . . . . . . Drone Recoveries . | . . . . . . . . . . . . . . . . . Exploration | -11 -10 -10 -10 -9 -8 -8 -8 -7 -7 -7 -7 -6 -6 -6 -6 -6 ------------- Run | Yrd Mat Min Exi Min Mat Gar Mat Fac Was Fac Gar Fac Ext Cet Arc Hub Turns Passed 14529 | 126 306 491 818 420 711 1465 1130 1669 737 408 1205 2293 1349 366 365 670 Spaces Moved 6797 | 57 174 296 500 255 327 717 461 724 334 245 644 930 525 180 119 309 Core 3 | 3 . . . . . . . . . . . . . . . . Treads 6384 | 54 174 296 500 255 327 717 461 468 180 245 644 930 525 180 119 309 Legs . | . . . . . . . . . . . . . . . . . Wheels 410 | . . . . . . . . 256 154 . . . . . . . Hover . | . . . . . . . . . . . . . . . . . Flight . | . . . . . . . . . . . . . . . . . Fastest Speed 50 | 50 160 160 160 160 156 156 160 160 160 160 160 160 163 160 160 160 Average Speed 178 | 154 160 160 160 160 156 158 177 211 174 160 160 212 218 171 160 160 Slowest Speed 243 | 160 160 160 160 160 160 240 240 240 240 160 160 243 243 243 160 240 Overloaded Moves . | . . . . . . . . . . . . . . . . . Propulsion Burnouts . | . . . . . . . . . . . . . . . . . Robots Hopped . | . . . . . . . . . . . . . . . . . Cave-ins Triggered . | . . . . . . . . . . . . . . . . . Exploration Rate (%) 53 | 3 36 83 91 50 29 67 42 19 91 10 82 27 72 73 79 56 Regions Visited 16 Branch Regions 7 Pre-discovered Areas . | . . . . . . . . . . . . . . . . . Known Exits Taken 5 | . 1 . . . 1 . 1 . . 1 . 1 . . . . Unknown Exits Taken 7 | 1 . 1 1 1 . . . . . . . . 1 1 1 . Scrap Searched 4 | . . 2 . 2 . . . . . . . . . . . . Spaces Dug 18 | . . . . . . . 3 1 . . 5 1 . . . 8 Terrain Destroyed 189 | . . . . . . . 21 2 1 . 32 89 15 . 6 23 Melee . | . . . . . . . . . . . . . . . . . Projectile 67 | . . . . . . . 21 2 1 . . 17 3 . 6 17 AOE 122 | . . . . . . . . . . . 32 72 12 . . 6 Terrain Rammed . | . . . . . . . . . . . . . . . . . Walls Destroyed . | . . . . . . . . . . . . . . . . . Machines Disabled . | . . . . . . . . . . . . . . . . . Actions | -11 -10 -10 -10 -9 -8 -8 -8 -7 -7 -7 -7 -6 -6 -6 -6 -6 --------- Run | Yrd Mat Min Exi Min Mat Gar Mat Fac Was Fac Gar Fac Ext Cet Arc Hub Total 8245 | 80 193 308 519 265 457 935 622 817 420 260 717 1116 660 225 252 399 Wait 309 | . 6 6 16 . 42 42 32 18 7 1 1 6 17 3 102 10 Move 6782 | 56 173 295 499 254 326 716 460 724 333 244 643 929 524 179 118 309 Hop . | . . . . . . . . . . . . . . . . . Pick Up 125 | 9 2 3 2 4 8 21 14 9 4 3 4 19 11 10 . 2 Fast Attach 61 | 6 1 . . . 8 6 4 3 7 3 2 11 2 5 3 . Attach 41 | 1 . . . . 3 6 4 4 . . . 13 . . . 10 Detach 8 | . 1 . . . 2 1 . . . . . 4 . . . . Swap 129 | 2 3 . . . 6 11 6 11 7 . 13 29 22 4 1 14 Drop 148 | . 2 . 2 4 15 29 9 9 16 6 7 19 13 13 3 1 Fire 605 | 6 5 3 . 2 46 102 80 39 46 2 47 84 57 11 24 51 Melee . | . . . . . . . . . . . . . . . . . Ram . | . . . . . . . . . . . . . . . . . Kick . | . . . . . . . . . . . . . . . . . Crush 23 | . . 1 . 1 1 . 13 . . 1 . 1 3 . 1 1 Escape Stasis 10 | . . . . . . . . . . . . . 10 . . . Rewire 4 | . . . . . . 1 . . . . . 1 1 . . 1 Trap . | . . . . . . . . . . . . . . . . . Miscellaneous . | . . . . . . . . . . . . . . . . . Route ------- -11/Scrapyard -10/Materials (discovered 2 exits: [*Mat] / *Min) -10/Mines (discovered 2 exits: [*Mat] / *Exi) -10/Exiles -9/Mines -8/Materials (discovered 2 exits: *Fac / Gar) -8/Garrison (discovered 3 exits: *Mat x3) -8/Materials -7/Factory -7/Waste -7/Factory -7/Garrison (discovered 3 exits: *Fac x3) -6/Factory (discovered 4 exits: *Low x2 / *Ext x2) -6/Extension (discovered 2 exits: [*Fac] / *Cet) -6/Cetus (discovered 2 exits: [*Fac] / [*Arc]) -6/Archives (discovered 2 exits: [*Fac] / *Hub) -6/Hub_04(d) (discovered 3 exits: [*Fac x3]) History --------- Turn | Location | Event 31 | -11/Scrapyard | Discovered new exit (range 16) 127 | -11/Scrapyard | Entered Materials 179 | -10/Materials | Identified exit to Mines 260 | -10/Materials | Discovered new exit (range 14) 300 | -10/Materials | Build established: Mutant 433 | -10/Materials | Entered Mines 441 | -10/Mines | Met a Derelict bent on vengeance 462 | -10/Mines | Assisted by bots powering up and referring to "LRC-V3" 485 | -10/Mines | Learned Materials emergency access door positions 734 | -10/Mines | Learned Materials terminal intel 885 | -10/Mines | Discovered new exit (range 3) 914 | -10/Mines | Deemed a non-threat by the Exiles lab entrance 914 | -10/Mines | Discovered new exit (range 5) 924 | -10/Mines | Entered Exiles 924 | -10/Exiles | Accompanied by 3 allies 968 | -10/Exiles | Met 8R-AWN 990 | -10/Exiles | Met EX-HEX 1079 | -10/Exiles | Met EX-DEC 1174 | -10/Exiles | Visited The Gauntlet 1397 | -10/Exiles | Met EX-BIN 1516 | -10/Exiles | Aligned with FarCom system 1517 | -10/Exiles | Given EX-Vault access code 1554 | -10/Exiles | Opened EX-Vault 1565 | -10/Exiles | Found AWS/Thermal 1598 | -10/Exiles | Warned to stay clear of 0b10 Research branches 1621 | -10/Exiles | Exiles lab attacked by MAIN.C 1720 | -10/Exiles | Discovered new exit (range 12) 1742 | -10/Exiles | Left Exiles lab with AWS/Thermal 1742 | -10/Exiles | Entered Mines 1742 | -9/Mines | Accompanied by 3 allies 1801 | -9/Mines | Found a damaged Exp. Sensor Array with a note attached 1805 | -9/Mines | Found Prototype Device 2144 | -9/Mines | Discovered new exit (range 8) 2162 | -9/Mines | Entered Materials 2162 | -8/Materials | Accompanied by 2 allies 2162 | -8/Materials | Evolved 4 slots: Propulsion x2, Utility x2 2164 | -8/Materials | Loaded intel: 12 terminal locations 2665 | -8/Materials | Identified Exp. Sensor Array 2727 | -8/Materials | Central database locked down 2794 | -8/Materials | Garrison activated, responded to threat 2856 | -8/Materials | Identified exit to Garrison 2863 | -8/Materials | Discovered new exit (range 3) 2873 | -8/Materials | Entered Garrison 2984 | -8/Garrison | Build established: Scavenger-Mutant 3021 | -8/Garrison | Triggered checkpoint 3080 | -8/Garrison | Garrison Relay disabled 3275 | -8/Garrison | Triggered checkpoint 3389 | -8/Garrison | Triggered checkpoint 3451 | -8/Garrison | Triggered checkpoint 3627 | -8/Garrison | Discovered new exit (range 11) 3673 | -8/Garrison | Triggered checkpoint 3704 | -8/Garrison | Garrison Relay disabled 3807 | -8/Garrison | Triggered checkpoint 3874 | -8/Garrison | Discovered new exit (range 63) 3874 | -8/Garrison | Discovered new exit (range 12) 3874 | -8/Garrison | Discovered new exit (range 37) 3946 | -8/Garrison | Spotted B-75 Beast 4044 | -8/Garrison | Destroyed B-75 Beast 4058 | -8/Garrison | Lost 5 parts (1p2n1u1w) 4196 | -8/Garrison | Installed Relay Interface Framework 4245 | -8/Garrison | Triggered checkpoint 4271 | -8/Garrison | Garrison Relay disabled 4338 | -8/Garrison | Entered Materials 4731 | -8/Materials | Discovered new exit (range 7) 4764 | -8/Materials | Identified exit to Factory 4960 | -8/Materials | Core integrity fell below 50% 5138 | -8/Materials | First assault squad dispatched 5468 | -8/Materials | Entered Factory 5468 | -7/Factory | Evolved 2 slots: Utility x2 5874 | -7/Factory | Fabricated HERF Cannon (x2) 6399 | -7/Factory | Build established: Bothacker-Mutant 6422 | -7/Factory | Cargo convoy interrupted 7137 | -7/Factory | Sucked down chute 7137 | -7/Factory | Entered Waste 7152 | -7/Waste | Spotted C-40 Crusher 7166 | -7/Waste | Spotted C-40 Crusher 7182 | -7/Waste | 2 allies followed down the chute 7192 | -7/Waste | Spotted C-40 Crusher 7270 | -7/Waste | Spotted C-40 Crusher 7296 | -7/Waste | Spotted C-40 Crusher 7321 | -7/Waste | Spotted C-40 Crusher 7384 | -7/Waste | Allies destroyed C-40 Crusher 7438 | -7/Waste | Destroyed C-40 Crusher 7463 | -7/Waste | Destroyed C-40 Crusher 7488 | -7/Waste | Destroyed C-40 Crusher 7497 | -7/Waste | Destroyed C-40 Crusher 7544 | -7/Waste | Allies destroyed C-40 Crusher 7580 | -7/Waste | Found Damper Plating 7630 | -7/Waste | Warlord forces began an assault 7785 | -7/Waste | Discovered new exit (range 15) 7874 | -7/Waste | Entered Factory 7874 | -7/Factory | Accompanied by 20 allies 8109 | -7/Factory | Found Prototype Launcher 8109 | -7/Factory | Identified Rocket Array 8116 | -7/Factory | Found Rocket Array 8266 | -7/Factory | Identified exit to Garrison 8282 | -7/Factory | Entered Garrison 8282 | -7/Garrison | Accompanied by 15 allies 8314 | -7/Garrison | Lost 3 allies 8381 | -7/Garrison | Lost 4 allies 8395 | -7/Garrison | Triggered checkpoint 8409 | -7/Garrison | Garrison Relay disabled 8471 | -7/Garrison | Triggered checkpoint 8580 | -7/Garrison | Triggered checkpoint 8612 | -7/Garrison | Triggered checkpoint 8647 | -7/Garrison | Lost 3 allies 8734 | -7/Garrison | Discovered new exit (range 13) 8796 | -7/Garrison | Triggered checkpoint 8830 | -7/Garrison | Expanded RIF knowledge: Coupler Efficiency 8933 | -7/Garrison | Triggered checkpoint 8938 | -7/Garrison | Triggered checkpoint 9011 | -7/Garrison | Discovered new exit (range 10) 9100 | -7/Garrison | Triggered checkpoint 9126 | -7/Garrison | Garrison Relay disabled 9344 | -7/Garrison | Found embedded Infiltrators 9352 | -7/Garrison | Triggered checkpoint 9388 | -7/Garrison | Garrison Relay disabled 9463 | -7/Garrison | Discovered new exit (range 12) 9487 | -7/Garrison | Entered Factory 9487 | -6/Factory | Accompanied by 5 allies 9487 | -6/Factory | Evolved 2 slots: Power x1, Utility x1 10131 | -6/Factory | Identified exit to Lower Caves 10131 | -6/Factory | Identified exit to Extension 10249 | -6/Factory | Lost 3 allies 10887 | -6/Factory | First assault squad dispatched 10967 | -6/Factory | Garrison activated, responded to threat 10998 | -6/Factory | System corruption reached 10% 11151 | -6/Factory | AWS/Thermal suddenly broke down 11780 | -6/Factory | Entered Extension 11958 | -6/Extension | Rescued A7 12255 | -6/Extension | Rescued a captive Derelict 12257 | -6/Extension | Rescued a captive Derelict 12349 | -6/Extension | Spotted B-75 Beast 12369 | -6/Extension | Build established: Commander-Mutant 12373 | -6/Extension | Spotted B-75 Beast 12391 | -6/Extension | Allies destroyed B-75 Beast 12409 | -6/Extension | Allies destroyed B-75 Beast 12439 | -6/Extension | Lost 8 allies 12480 | -6/Extension | First assault squad dispatched 12517 | -6/Extension | Rescued a captive Derelict 12518 | -6/Extension | Rescued a captive Derelict 12570 | -6/Extension | Rescued a captive Derelict 12570 | -6/Extension | Rescued a captive Derelict 12583 | -6/Extension | P-60 Hacker assimilated allied CD-PGW(l) 12627 | -6/Extension | Lost 4 allies 12749 | -6/Extension | Rescued a captive Derelict 12890 | -6/Extension | Build established: Bothacker-Mutant 12955 | -6/Extension | Rescued a captive Derelict 12957 | -6/Extension | Rescued a captive Derelict 13058 | -6/Extension | Discovered new exit (range 10) 13061 | -6/Extension | Discovered new exit (range 6) 13103 | -6/Extension | Found Hvy. Reactive Plating 13129 | -6/Extension | Entered Cetus 13129 | -6/Cetus | Accompanied by 6 allies (A7) 13134 | -6/Cetus | Acquired a Cetus Manufacturing Module code from A7 13161 | -6/Cetus | Spotted Cetus Guard 13161 | -6/Cetus | Spotted Cetus Guard 13162 | -6/Cetus | Allies destroyed Cetus Guard 13165 | -6/Cetus | Spotted Cetus Guard 13166 | -6/Cetus | Allies destroyed Cetus Guard 13171 | -6/Cetus | Spotted Cetus Guard 13176 | -6/Cetus | Allies destroyed Cetus Guard 13178 | -6/Cetus | Allies destroyed Cetus Guard 13219 | -6/Cetus | System corruption reached 30% 13285 | -6/Cetus | Started Cetus Manufacturing Module 13299 | -6/Cetus | Escorted A7 to Cetus Mainframe 13310 | -6/Cetus | Manufactured an Enhanced Grunt 13319 | -6/Cetus | Discovered new exit (range 16) 13335 | -6/Cetus | Manufactured an Enhanced Grunt 13346 | -6/Cetus | Spotted Cetus Guard 13346 | -6/Cetus | Spotted Cetus Guard 13351 | -6/Cetus | Spotted Cetus Guard 13354 | -6/Cetus | Allies destroyed Cetus Guard 13355 | -6/Cetus | Allies destroyed Cetus Guard 13360 | -6/Cetus | Manufactured an Enhanced Grunt 13360 | -6/Cetus | Destroyed Cetus Guard 13370 | -6/Cetus | Discovered new exit (range 16) 13378 | -6/Cetus | Met Revision 17 13385 | -6/Cetus | Manufactured an Enhanced Grunt 13410 | -6/Cetus | Manufactured an Enhanced Grunt 13492 | -6/Cetus | Build established: Scavenger-Mutant 13495 | -6/Cetus | Entered Archives 13495 | -6/Archives | Accompanied by 8 allies (A7) 13500 | -6/Archives | Received a hacking code to weaken MAIN.C 13715 | -6/Archives | Discovered new exit (range 16) 13761 | -6/Archives | Discovered new exit (range 15) 13860 | -6/Archives | Entered Hub_04(d) 13860 | -6/Hub_04(d) | Accompanied by 5 allies 13951 | -6/Hub_04(d) | Discovered new exit (range 12) 14007 | -6/Hub_04(d) | Discovered new exit (range 7) 14153 | -6/Hub_04(d) | Discovered new exit (range 15) 14210 | -6/Hub_04(d) | First assault squad dispatched 14440 | -6/Hub_04(d) | Network Hub disabled 14451 | -6/Hub_04(d) | Spotted B-75 Beast 14456 | -6/Hub_04(d) | Garrison activated, responded to threat 14461 | -6/Hub_04(d) | Spotted Lightning 14465 | -6/Hub_04(d) | Spotted Lightning 14466 | -6/Hub_04(d) | Spotted Lightning 14467 | -6/Hub_04(d) | Spotted Lightning 14468 | -6/Hub_04(d) | Core integrity fell below 50% 14470 | -6/Hub_04(d) | Spotted Lightning 14486 | -6/Hub_04(d) | Spotted Lightning 14490 | -6/Hub_04(d) | Lost 3 allies 14507 | -6/Hub_04(d) | Core integrity fell below 20% 14513 | -6/Hub_04(d) | Spotted Lightning 14517 | -6/Hub_04(d) | Spotted Lightning 14517 | -6/Hub_04(d) | Network Hub disabled 14522 | -6/Hub_04(d) | Spotted Lightning 14530 | -6/Hub_04(d) | Destroyed by Lightning with EMDS Last Messages --------------- 14525_ I-47 Archangel distress signal jammed. 14526_ Acquired 6 matter. 14526_ Penetrated by EMDS Slug. 14526_ HERF Cannon destroyed. 14526_ Penetrated by EMDS Slug. 14526_ I-47 Archangel distress signal jammed. 14527_ I-36 Angel distress signal jammed. 14527_ Imp. Transmission Jammer destroyed. 14528_ Rocket intercepted. 14528_ G-50 Soldier destroyed. 14528_ Rocket Array destroyed. 14528_ Destroyed Rocket Array. 14528_ Rocket intercepted. 14528_ Lgt. Angular Momentum Engine fried. 14528_ G-50 Soldier destroyed. 14528_ Penetrated by EMDS Slug. 14529_ H-61 Shepherd calls for reinforcements. 14529_ ALERT: Hostile activity reported, dispatching reinforcements to area. 14530_ Penetrated by EMDS Slug. Map ----- +----------------------------------------------------+ | ???????????????????????????????????????? | | ???????????????????????????????????????? | | ???????????????????????????????????????? | | ???????????????????????????????????????? | | ???????????????????????????????????????? | | ???????????????????????????????????????? | | ???????????????????????????????????????? | | ???????????????????????????????????????? | | ???????????????????????????????????????? | | ???????????????????????????????????????? | | ???????????????????????????????????????? | | ???????????????????????????????????????? | | ???????????????????????????????????????? | | ???????????????????????????????????????? | | ???????????????????????????????????????? | | ?????????????##???????##???????????????? | | ???????##????# #######Y#???????????????? | | ???##### ##### #[ #???????????????? | | ??# # #???????????????? | | ??# # #???????????????? | | ??# ;;;;;;;;;;;;;! #???????????????? | | ? # ; ; ###?????????????? | | ? ; ####??????????? | | ??# ; ## #???????? | | ??# ; % h ""??????? | | ; @ h H "??????? | | ?# ; h gi %h ??????? | | ??# ; !hh=h ! ??????? | | ?# ; gh BBg== # #???#????? | | ?# ; BB ! #???? #?? #????? | | ??# ; xbg #???h??# ##???? | | ?? ; / i #????? ????? | | ??# ;;;;;;;;;;;;; !#???? ?????? | | ??? #[% x ?? ==! ?????? | | ??? ##*### # =!! ?????? | | ????#### #########" #### =!! ????? | | ???????##????????# ! [ ????? | | ?????????????????# "% # !?????? | | ?????????????????# wT !%= #???? | | ?????????????????# #% #???? | | ?????????????????####/##"###]! #???? | | ???????????????????# ! / % / ? | | ???????????????????# "" ## "???????? | | ???????????????????# "T ! #? #?####### | | ???????????????????# "" #? #?# | | ??????????????????## #? #?# | | ??????????????????#" ## #?# | | ??????????????????###+##+## #?# | | ???????????????????# #?# | | ???????????????????#= #?# | +----------------------------------------------------+ Best States ------------- Heat Dissipation 64 Coolant Potential 145 Energy Generation 36 Energy Capacity 540 Matter Stores 300 Matter Capacity 300 Sight Range 16 Terrain Scan Density 10 Jamming Range 14 Armor Coverage 675 Resistance: KI 30 Resistance: TH 10 Resistance: EM 15 Phase Shifting 15 Evasion (%) 55 Recoil Reduction 4 Salvage Targeting 4 Relay Coupler Types 3 Relay Coupler Value 103 Item Schematics ----------------- Huge Storage Unit | -8/Materials | Hacked Rnf. Deuterium Engine | -8/Materials | Scanalyzed Robot Schematics ------------------ None Fabricated ------------ HERF Cannon | x2 | -7/Factory | Preloaded Alien Tech Used ----------------- None Achievements -------------- Dramatic Entrance Error 47 Challenges ------------ None Game ------ Seed RiotAerolevCharger Manual? 0 Play Time 02:43:24 Cumulative 78.2 hours Start 2024.08.08 @ 08:43:13 End 2024.08.08 @ 11:30:12 Sessions 1 Manual Loads 0 Difficulty Rogue Special Mode None Game No. 38 Rogue 38 Adventurer 0 Explorer 0 Win Type - Total 3 Types 1/0/0/2/0/0/0/0/0 Lore% 34 Gallery% 59 Achievement% 52 Wizard Run 0 Options --------- Layout 0 ASCII 0 Keyboard 0 Movement Numpad Keybinds 0 Fullscreen 1 Font 18/X11 Map View 76x50 Zoom Use 0% Tactical HUD 1 Map Filters NONE Filters NONE Steam 1 RUN: 98a181db-52c5-46ee-b2cf-28224824c7a2